bitfinex/quotes_BTCUSD_20241203
["timestamp","ask_amount","ask_price","bid_price","bid_amount"]
[1733209495368,5.7518546,95666.0,95665.0,0.74843726]
[1733209496936,5.7518546,95666.0,95665.0,0.54843726]
[1733209497158,5.7518546,95666.0,95665.0,0.34843726]
[1733209497867,5.7518546,95666.0,95665.0,0.31590721]
[1733209498084,5.7508546,95666.0,95665.0,0.31190721]
[1733209498316,5.7518546,95666.0,95665.0,0.40931253]
[1733209498525,5.7518546,95666.0,95665.0,0.31590721]
[1733209498958,5.7508546,95666.0,95665.0,0.34440572]
[1733209499210,5.7518546,95666.0,95665.0,0.34840572]
[1733209500551,5.8325546,95666.0,95665.0,0.34840572]
[1733209500768,5.8325546,95666.0,95665.0,0.24556051]
[1733209500986,5.8810546,95666.0,95659.0,0.209073]
[1733209501204,5.8810546,95666.0,95654.0,0.00016579]
[1733209501205,5.8800546,95666.0,95661.0,0.20907]
[1733209501424,5.8800546,95666.0,95661.0,0.418141]
[1733209501640,5.8810546,95666.0,95665.0,0.004]
[1733209502073,5.8315546,95666.0,95665.0,0.14505931]
[1733209502298,5.7508546,95666.0,95665.0,0.14505931]
[1733209502522,5.7508546,95666.0,95665.0,0.17756464]
[1733209502995,4.2301486,95666.0,95665.0,0.54690926]
[1733209503229,3.4802486,95666.0,95665.0,0.54505931]
[1733209504329,3.4802486,95666.0,95665.0,0.34505931]
[1733209504553,3.4802486,95666.0,95665.0,0.34705931]
[1733209504982,3.4802486,95666.0,95665.0,0.34505931]
[1733209505430,3.4812486,95666.0,95665.0,0.34905931]
[1733209506330,3.4812486,95666.0,95665.0,0.54905931]
[1733209507662,0.0027266,95666.0,95665.0,0.54905931]
[1733209508120,0.0027266,95666.0,95665.0,0.10684521]
[1733209509228,0.0017266,95666.0,95665.0,0.10284521]
[1733209509511,0.0804,95665.0,95654.0,0.00102889]
[1733209509749,0.0804,95665.0,95660.0,0.418144]
[1733209510438,0.0804,95665.0,95660.0,0.209071]
[1733209510660,0.0804,95665.0,95656.0,0.20908]
[1733209510885,0.0027266,95666.0,95656.0,0.20908]
[1733209510886,0.0463,95664.0,95656.0,0.20908]
[1733209511105,0.0828,95663.0,95656.0,0.20908]
[1733209511544,0.0828,95663.0,95656.0,0.418162]
[1733209511752,0.0828,95663.0,95657.0,0.20908]
[1733209512392,0.0828,95663.0,95654.0,0.00102889]
[1733209512602,0.0828,95663.0,95655.0,0.209084]
[1733209512811,0.0838,95663.0,95655.0,0.209084]
[1733209513461,0.0838,95663.0,95660.0,0.209073]
[1733209513891,0.0838,95663.0,95654.0,0.00102889]
[1733209514102,0.20907,95662.0,95654.0,0.00102889]
[1733209514347,0.0797,95661.0,95654.0,0.00102889]
[1733209514831,0.0797,95661.0,95654.0,0.21011489]
[1733209515047,0.0797,95661.0,95654.0,0.00102889]
[1733209516181,0.0807,95661.0,95654.0,0.00102889]
[1733209516400,0.0807,95661.0,95655.0,0.209084]
[1733209516632,0.0807,95661.0,95657.0,0.20908]
[1733209516851,0.0807,95661.0,95654.0,0.21011489]
[1733209517067,0.0857,95661.0,95654.0,0.00102889]
[1733209517313,0.0797,95661.0,95654.0,0.00102889]
[1733209517541,0.0807,95661.0,95654.0,0.21011489]
[1733209517772,0.0857,95661.0,95654.0,0.21011489]
[1733209517997,0.0797,95661.0,95654.0,0.21011489]
[1733209518424,0.0857,95661.0,95654.0,0.41920089]
[1733209519046,0.0857,95661.0,95654.0,0.00102889]
[1733209519460,0.0857,95661.0,95659.0,0.209075]
[1733209520295,0.0847,95661.0,95659.0,0.209075]
[1733209520716,0.0797,95661.0,95659.0,0.209075]
[1733209520949,0.0817,95661.0,95659.0,0.209075]
[1733209521187,0.0797,95661.0,95655.0,0.209084]
[1733209521613,0.0857,95661.0,95654.0,0.00102889]
[1733209521823,0.0807,95661.0,95654.0,0.00102889]
[1733209522029,0.0797,95661.0,95654.0,0.00102889]
[1733209522254,0.0847,95661.0,95654.0,0.00102889]
[1733209522904,0.0847,95661.0,95656.0,0.209082]
[1733209523330,0.0797,95661.0,95656.0,0.209082]
[1733209523811,0.0797,95661.0,95656.0,0.418164]
[1733209524029,0.0857,95661.0,95656.0,0.418164]
[1733209524453,0.0797,95661.0,95656.0,0.418164]
[1733209524887,0.0857,95661.0,95654.0,0.00102889]
[1733209525112,0.0857,95661.0,95655.0,0.209084]
[1733209525329,0.11997856,95661.0,95654.0,0.00102889]
[1733209525548,0.0763,95660.0,95654.0,0.00102889]
[1733209525771,0.285373,95660.0,95654.0,0.00102889]
[1733209525986,0.1256,95655.0,95654.0,0.00102889]
[1733209526458,0.1256,95655.0,95633.0,0.0008633]
[1733209526459,0.209102,95647.0,95634.0,0.20913]
[1733209526666,0.0763,95646.0,95636.0,0.00017421]
[1733209527084,0.0763,95646.0,95637.0,0.209124]
[1733209527707,0.0763,95646.0,95643.0,0.41822]
[1733209528606,0.0763,95646.0,95643.0,0.20911]
[1733209529086,0.0763,95646.0,95637.0,0.210124]
[1733209529293,0.0763,95646.0,95637.0,0.001]
[1733209530206,0.0763,95646.0,95643.0,0.001]
[1733209530631,0.209106,95645.0,95637.0,0.001]
[1733209530850,0.0493,95643.0,95637.0,0.001]
[1733209531067,0.0763,95642.0,95637.0,0.211986]
[1733209531270,0.0763,95642.0,95637.0,0.210986]
[1733209531483,0.0763,95642.0,95637.0,0.209986]
[1733209531702,0.0763,95642.0,95637.0,0.419109]
[1733209531915,0.0763,95642.0,95637.0,0.420109]
[1733209532124,0.0763,95642.0,95638.0,0.00330914]
[1733209532556,0.0763,95642.0,95639.0,0.209119]
[1733209532832,0.0763,95642.0,95639.0,0.42154196]
[1733209533054,0.0763,95642.0,95639.0,0.21242296]
[1733209533710,0.0763,95642.0,95639.0,0.42354196]
[1733209534390,0.0763,95642.0,95639.0,0.42554196]
[1733209534607,0.0494,95653.0,95639.0,0.42554196]
[1733209534608,0.0801,95652.0,95651.0,0.209093]
[1733209534823,0.0801,95660.0,95659.0,0.209075]
[1733209535257,0.0801,95660.0,95659.0,0.21235698]
[1733209535482,0.0017266,95666.0,95665.0,0.209062]
[1733209535913,0.0017266,95666.0,95665.0,0.31518299]
[1733209537921,0.0017266,95666.0,95665.0,0.31618299]
[1733209539244,0.0017266,95666.0,95665.0,0.31518299]
[1733209539455,0.0017266,95666.0,95665.0,0.31718299]
[1733209539666,0.0017266,95666.0,95665.0,0.35992724]
[1733209539874,0.0017266,95666.0,95665.0,0.35892724]
[1733209540292,0.0017266,95666.0,95665.0,0.35992724]
[1733209540748,0.0017266,95666.0,95665.0,0.55792724]
[1733209540956,0.0027266,95666.0,95665.0,0.56492724]
[1733209541167,0.0037266,95666.0,95665.0,0.56992724]
[1733209542021,0.0037266,95666.0,95665.0,0.32718299]
[1733209542231,0.0027266,95666.0,95665.0,0.32018299]
[1733209542676,0.0037266,95666.0,95665.0,0.32718299]
[1733209542889,0.0037266,95666.0,95665.0,0.32018299]
[1733209542890,0.0027266,95666.0,95665.0,0.32018299]
[1733209543315,0.0037266,95666.0,95665.0,0.32718299]
[1733209547626,0.0037266,95666.0,95665.0,0.01527578]
[1733209547830,0.0037266,95666.0,95665.0,0.012]
[1733209548493,0.0027266,95666.0,95665.0,0.007]
[1733209548909,0.00111788,95666.0,95665.0,0.008]
[1733209549350,0.00111788,95666.0,95665.0,0.007]
[1733209549581,0.00111788,95666.0,95665.0,0.01026302]
[1733209549787,0.00311788,95666.0,95665.0,0.07401052]
[1733209549994,0.00211788,95666.0,95665.0,0.06701052]
[1733209550209,0.00111788,95666.0,95665.0,0.06701052]
[1733209550423,0.00211788,95666.0,95665.0,0.17170575]
[1733209550637,0.00111788,95666.0,95665.0,0.16985573]
[1733209550856,0.00111788,95666.0,95665.0,0.17170561]
[1733209551079,0.00411788,95666.0,95665.0,0.17170561]
[1733209551956,0.00311788,95666.0,95665.0,0.17170561]
[1733209552434,0.00311788,95666.0,95665.0,0.17570561]
[1733209552841,0.00311788,95666.0,95665.0,0.17170561]
[1733209553074,0.00011788,95666.0,95665.0,0.17170561]
[1733209553291,0.00211788,95666.0,95665.0,0.18370561]
[1733209553728,0.00111788,95666.0,95665.0,0.17870561]
[1733209554169,0.00011788,95666.0,95665.0,0.17170561]
[1733209554620,0.00111788,95666.0,95665.0,0.17970561]
[1733209554847,0.00011788,95666.0,95665.0,0.17170561]
[1733209555059,0.00011788,95666.0,95665.0,0.17570561]
[1733209555276,0.00011788,95666.0,95665.0,0.11195811]
[1733209555494,0.00011788,95666.0,95665.0,0.10610823]
[1733209555708,0.08161788,95666.0,95665.0,0.10610823]
[1733209555914,0.08261788,95666.0,95665.0,0.11110823]
[1733209556330,0.08361788,95666.0,95665.0,0.11810823]
[1733209556587,0.08261788,95666.0,95665.0,0.11110823]
[1733209556792,0.08261788,95666.0,95665.0,0.00826302]
[1733209557004,0.08361788,95666.0,95665.0,0.01626302]
[1733209558781,0.0831952,95666.0,95665.0,0.08061052]
[1733209559426,0.0831952,95666.0,95665.0,0.01626302]
[1733209562708,0.1300952,95666.0,95665.0,0.01626302]
[1733209563568,0.1300952,95666.0,95665.0,0.013]
[1733209563811,0.1290952,95666.0,95665.0,0.005]
[1733209564041,0.1290952,95666.0,95665.0,0.006]
[1733209564249,0.1280952,95666.0,95665.0,0.001]
[1733209564474,0.496724,95665.0,95637.0,0.000863]
[1733209564685,0.287662,95665.0,95651.0,0.209092]
[1733209565388,0.287662,95665.0,95653.0,0.209089]
[1733209565594,0.287662,95665.0,95660.0,0.209072]
[1733209565595,0.0786,95665.0,95660.0,0.209072]
[1733209565849,0.0786,95665.0,95660.0,0.418145]
[1733209566055,0.0786,95665.0,95662.0,0.418138]
[1733209566264,0.0796,95665.0,95662.0,0.418138]
[1733209566511,0.0796,95665.0,95664.0,0.209065]
[1733209566710,0.0796,95665.0,95664.0,0.31191021]
[1733209566922,0.0796,95665.0,95664.0,0.3150494]
[1733209567334,0.0816,95665.0,95664.0,0.3150494]
[1733209567546,0.00179972,95666.0,95664.0,0.3150494]
[1733209567759,0.001,95665.0,95664.0,0.3150494]
[1733209567979,0.003,95665.0,95664.0,0.3150494]
[1733209568222,0.002,95665.0,95664.0,0.3150494]
[1733209569335,0.00179972,95666.0,95664.0,0.3150494]
[1733209569554,0.00179972,95666.0,95665.0,0.10469507]
[1733209569786,0.00179972,95666.0,95665.0,0.1781996]
[1733209569999,0.00179972,95666.0,95665.0,0.18133776]
[1733209571103,0.00179972,95666.0,95665.0,0.18533776]
[1733209571369,0.00179972,95666.0,95665.0,0.1794879]
[1733209571618,0.00179972,95666.0,95665.0,0.10598337]
[1733209572118,0.00279972,95666.0,95665.0,0.00713816]
[1733209572631,0.209079,95658.0,95639.0,0.0008631]
[1733209572870,0.048,95656.0,95639.0,0.0008631]
[1733209573115,0.209084,95655.0,95639.0,0.0008631]
[1733209573396,0.048,95656.0,95639.0,0.0008631]
[1733209573633,0.209115,95641.0,95640.0,0.00316399]
[1733209573869,0.209115,95641.0,95605.0,0.2]
[1733209573870,0.0784,95641.0,95600.0,0.209203]
[1733209574108,0.0784,95641.0,95620.0,0.20916]
[1733209574349,0.209117,95640.0,95625.0,0.209148]
[1733209574902,0.20913,95634.0,95615.0,0.209171]
[1733209575124,0.0485,95633.0,95600.0,0.209203]
[1733209575307,0.209157,95622.0,95605.0,0.209193]
[1733209575561,0.0779,95621.0,95606.0,0.209191]
[1733209575778,0.287059,95621.0,95606.0,0.209191]
[1733209576010,0.287059,95621.0,95613.0,0.00319491]
[1733209576228,0.0779,95621.0,95613.0,0.00319491]
[1733209576458,0.28706,95621.0,95612.0,0.00144918]
[1733209576676,0.49622,95621.0,95612.0,0.00144918]
[1733209576916,0.0779,95621.0,95612.0,0.00144918]
[1733209577362,0.209161,95620.0,95612.0,0.00144918]
[1733209577580,0.418323,95620.0,95612.0,0.00144918]
[1733209578237,0.209161,95620.0,95612.0,0.00144918]
[1733209578890,0.0779,95621.0,95612.0,0.00144918]
[1733209579146,0.209161,95620.0,95612.0,0.00144918]
[1733209579376,0.209174,95615.0,95612.0,0.00144918]
[1733209579586,0.418348,95615.0,95612.0,0.00144918]
[1733209579795,0.418348,95615.0,95612.0,0.00244918]
[1733209580019,0.209174,95615.0,95612.0,0.00244918]
[1733209580488,0.209174,95615.0,95612.0,0.00144918]
[1733209580922,0.209174,95615.0,95612.0,0.00244918]
[1733209581145,0.209164,95619.0,95612.0,0.00244918]
[1733209581146,0.0779,95621.0,95612.0,0.00144918]
[1733209581626,0.0779,95621.0,95612.0,0.00344918]
[1733209581832,0.08569,95621.0,95612.0,0.00344918]
[1733209582050,0.08569,95621.0,95613.0,0.00320537]
[1733209582264,0.209176,95613.0,95612.0,0.00344918]
[1733209582760,0.209176,95613.0,95612.0,0.00244918]
[1733209583002,0.31200746,95613.0,95612.0,0.00244918]
[1733209583239,0.209176,95613.0,95612.0,0.00244918]
[1733209583480,0.209176,95613.0,95612.0,0.00144918]
[1733209583739,0.210176,95613.0,95612.0,0.00144918]
[1733209585961,0.001,95613.0,95612.0,0.00144918]
[1733209589804,0.001,95613.0,95612.0,0.00453188]
[1733209590018,0.001,95613.0,95612.0,0.00144918]
[1733209590231,0.001,95613.0,95612.0,0.10737709]
[1733209590437,0.001,95613.0,95612.0,0.10429439]
[1733209590651,0.001,95613.0,95612.0,0.10737603]
[1733209590869,0.001,95613.0,95612.0,0.00453082]
[1733209591390,0.0769,95613.0,95612.0,0.00453082]
[1733209591637,0.1254235,95613.0,95612.0,0.00453082]
[1733209591886,0.1254235,95613.0,95612.0,0.00144918]
[1733209592513,0.0759,95613.0,95612.0,0.00144918]
[1733209592944,0.0769,95613.0,95612.0,0.00144918]
[1733209593157,0.0759,95613.0,95612.0,0.00244918]
[1733209593366,0.0759,95613.0,95612.0,0.00444918]
[1733209593578,0.0759,95613.0,95612.0,0.00344918]
[1733209594019,0.0759,95613.0,95612.0,0.00444918]
[1733209594459,0.1044068,95613.0,95612.0,0.00444918]
[1733209594914,0.0759,95613.0,95612.0,0.00444918]
[1733209595637,0.209159,95621.0,95612.0,0.00762786]
[1733209595842,0.0769,95623.0,95612.0,0.21362618]
[1733209596050,0.0769,95623.0,95618.0,0.209165]
[1733209596255,0.20914,95630.0,95613.0,0.21235165]
[1733209596469,0.20914,95630.0,95619.0,0.00333785]
[1733209596679,0.20914,95630.0,95613.0,0.209174]
[1733209596889,0.20914,95630.0,95620.0,0.00341641]
[1733209597100,0.003,95623.0,95613.0,0.209174]
[1733209597312,0.0786266,95633.0,95614.0,0.10284521]
[1733209597524,0.0786266,95633.0,95624.0,0.209152]
[1733209597733,0.0786266,95633.0,95629.0,0.209141]
[1733209597734,0.009,95630.0,95629.0,0.209141]
[1733209597945,0.003,95630.0,95625.0,0.00341124]
[1733209598157,0.003,95630.0,95629.0,0.00340711]
[1733209598373,0.003,95630.0,95614.0,0.10284521]
[1733209598374,0.209141,95629.0,95614.0,0.10284521]
[1733209598590,0.01116266,95630.0,95597.0,4.689e-05]
[1733209598802,0.209143,95629.0,95599.0,0.00185129]
[1733209599021,0.003,95630.0,95619.0,0.209163]
[1733209599240,0.003,95623.0,95620.0,0.20607649]
[1733209599465,0.003,95623.0,95621.0,0.24023627]
[1733209599680,0.0047266,95633.0,95629.0,0.209139]
[1733209599907,0.006,95630.0,95626.0,0.209147]
[1733209600127,0.006,95630.0,95626.0,0.418294]
[1733209600344,0.0017266,95633.0,95630.0,0.209138]
[1733209600577,0.0017266,95633.0,95630.0,0.418277]
[1733209600785,0.0017266,95633.0,95632.0,0.209135]
[1733209600993,0.0017266,95633.0,95632.0,0.31198021]
[1733209602810,0.0067266,95633.0,95632.0,0.31198021]
[1733209603065,0.0017266,95633.0,95632.0,0.31198021]
[1733209603280,0.0017266,95633.0,95632.0,0.31398021]
[1733209603500,0.0017266,95633.0,95632.0,0.31298021]
[1733209603946,0.0017266,95633.0,95632.0,0.31498021]
[1733209604176,0.0017266,95633.0,95632.0,0.31198021]
[1733209604377,0.0017266,95633.0,95632.0,0.31398021]
[1733209604584,0.0017266,95633.0,95632.0,0.31738422]
[1733209605449,0.0017266,95633.0,95632.0,0.39095114]
[1733209605703,0.0017266,95633.0,95632.0,0.31938422]
[1733209605938,0.0017266,95633.0,95632.0,0.31538422]
[1733209606148,0.0017266,95633.0,95632.0,0.31638422]
[1733209606363,0.0017266,95633.0,95632.0,0.31838422]
[1733209606788,0.0017266,95633.0,95632.0,0.31738422]
[1733209606999,0.0017266,95633.0,95632.0,0.31838422]
[1733209607877,0.0017266,95633.0,95632.0,0.39205114]
[1733209608510,0.0017266,95633.0,95632.0,0.31838422]
[1733209609156,0.0017266,95633.0,95632.0,0.34738422]
[1733209610027,0.0017266,95633.0,95632.0,0.37691127]
[1733209610235,0.0017266,95633.0,95632.0,0.34438422]
[1733209610446,0.0037266,95633.0,95632.0,0.35438422]
[1733209610932,0.0037266,95633.0,95632.0,0.65721568]
[1733209611170,0.0037266,95633.0,95632.0,0.70451568]
[1733209611171,0.00306188,95633.0,95632.0,0.70451568]
[1733209611380,0.00306188,95633.0,95632.0,0.85451568]
[1733209611814,0.00306188,95633.0,95632.0,0.88701747]
[1733209613094,0.00306188,95633.0,95632.0,0.8897813]
[1733209613563,0.00306188,95633.0,95632.0,0.88701747]
[1733209613763,0.0017262,95666.0,95664.0,0.209063]
[1733209614189,0.0017262,95666.0,95665.0,0.00335762]
[1733209614616,0.0017262,95666.0,95661.0,0.209071]
[1733209614819,0.0017262,95666.0,95665.0,0.00335762]
[1733209615031,0.0017262,95666.0,95661.0,0.209071]
[1733209615240,0.0017262,95666.0,95663.0,0.209067]
[1733209615453,0.0017262,95666.0,95665.0,0.00335762]
[1733209615655,0.0087262,95666.0,95665.0,0.209062]
[1733209615861,0.0047262,95666.0,95665.0,0.21228019]
[1733209616073,0.0047262,95666.0,95665.0,0.00321819]
[1733209616284,0.0087262,95666.0,95661.0,0.001]
[1733209616501,0.0017262,95666.0,95665.0,0.0032181]
[1733209616708,0.0047262,95666.0,95657.0,0.20908]
[1733209616912,0.0117262,95666.0,95665.0,0.0042181]
[1733209617119,0.0017262,95666.0,95657.0,0.31192521]
[1733209617325,0.0017262,95666.0,95665.0,0.0032181]
[1733209617542,0.0017262,95666.0,95661.0,0.001]
[1733209617751,0.0017262,95666.0,95665.0,0.00321867]
[1733209617995,0.0017262,95666.0,95661.0,0.001]
[1733209618179,0.0017262,95666.0,95665.0,0.00321864]
[1733209618442,0.0017262,95666.0,95661.0,0.002]
[1733209618873,0.0017262,95666.0,95662.0,0.00322174]
[1733209619297,0.0017262,95666.0,95657.0,0.10284521]
[1733209619298,0.0017262,95666.0,95657.0,0.31192321]
[1733209619511,0.0027262,95666.0,95663.0,0.00322071]
[1733209619726,0.0027262,95666.0,95657.0,0.52200221]
[1733209619918,0.0017262,95666.0,95664.0,0.00321967]
[1733209620121,0.0017262,95666.0,95662.0,0.209069]
[1733209620334,0.0017262,95666.0,95665.0,0.00321864]
[1733209620539,0.0017262,95666.0,95657.0,0.10284521]
[1733209620768,0.2879862,95666.0,95665.0,0.00321864]
[1733209620973,0.2879862,95666.0,95652.0,0.00017421]
[1733209620974,0.209086,95655.0,95652.0,0.00017421]
[1733209621120,0.0772,95654.0,95652.0,0.00017421]
[1733209621941,0.209072,95661.0,95652.0,0.00017421]
[1733209621942,0.0772,95661.0,95652.0,0.00017421]
[1733209622150,0.0772,95661.0,95659.0,0.209075]
[1733209622539,0.0772,95661.0,95660.0,0.00322353]
[1733209622749,0.0057262,95666.0,95661.0,0.209071]
[1733209622965,0.0057262,95666.0,95661.0,0.418142]
[1733209623165,0.0017262,95666.0,95663.0,0.209067]
[1733209623372,0.0017262,95666.0,95660.0,0.13435958]
[1733209623373,0.0017262,95666.0,95664.0,0.00321935]
[1733209623600,0.0017262,95666.0,95660.0,0.10284521]
[1733209623839,0.0017262,95666.0,95661.0,0.00322245]
[1733209624258,0.2107872,95666.0,95659.0,0.001]
[1733209624474,0.500224,95665.0,95662.0,0.00322157]
[1733209624681,0.209089,95653.0,95627.0,0.209144]
[1733209624898,0.209089,95653.0,95623.0,0.209153]
[1733209624899,0.340889,95653.0,95623.0,0.209153]
[1733209625327,0.340889,95653.0,95631.0,0.209136]
[1733209625789,0.340889,95653.0,95639.0,0.209118]
[1733209625950,0.1318,95653.0,95639.0,0.209118]
[1733209626149,0.1318,95653.0,95648.0,0.209099]
[1733209626363,0.1458,95653.0,95652.0,0.00457155]
[1733209626568,0.1368,95653.0,95652.0,0.00017421]
[1733209626769,0.1363,95653.0,95652.0,0.00017421]
[1733209626975,0.1363,95653.0,95652.0,0.00357155]
[1733209626976,0.1313,95653.0,95652.0,0.00357155]
[1733209627183,0.1343,95653.0,95652.0,0.00357155]
[1733209627389,0.1343,95653.0,95652.0,0.00017421]
[1733209628231,0.1403,95653.0,95652.0,0.00017421]
[1733209628429,0.1313,95653.0,95652.0,0.00017421]
[1733209628639,0.1363,95653.0,95652.0,0.00017421]
[1733209628857,0.007,95653.0,95652.0,0.10301942]
[1733209629063,0.007,95653.0,95652.0,0.13423116]
[1733209629287,0.007,95653.0,95652.0,0.13761585]
[1733209629913,0.007,95653.0,95652.0,0.10640411]
[1733209631303,0.002,95653.0,95652.0,0.10640411]
[1733209631535,0.001727,95665.0,95653.0,0.627267]
[1733209631746,0.001727,95665.0,95654.0,0.10469536]
[1733209631957,0.001727,95665.0,95654.0,0.10837755]
[1733209632175,0.001727,95665.0,95661.0,0.20907]
[1733209632394,0.001727,95665.0,95662.0,0.00367228]
[1733209632634,0.001727,95665.0,95663.0,0.209067]
[1733209632882,0.004727,95665.0,95663.0,0.21273804]
[1733209633323,0.005727,95665.0,95663.0,0.00367104]
[1733209633560,0.005727,95665.0,95662.0,0.209068]
[1733209633763,0.005727,95665.0,95663.0,0.00367104]
[1733209633969,0.005727,95665.0,95664.0,0.209065]
[1733209634177,0.005727,95665.0,95664.0,0.0036698]
[1733209634381,0.008727,95665.0,95662.0,0.209068]
[1733209634582,0.007727,95665.0,95663.0,0.00367104]
[1733209634794,0.004727,95665.0,95664.0,0.209065]
[1733209634997,0.008727,95665.0,95664.0,0.0036698]
[1733209635206,0.008727,95665.0,95660.0,0.418145]
[1733209635409,0.002727,95665.0,95662.0,0.418138]
[1733209635622,0.001727,95665.0,95664.0,0.209065]
[1733209635826,0.004727,95665.0,95664.0,0.31742977]
[1733209636052,0.002727,95665.0,95664.0,0.31557974]
[1733209636671,0.001727,95665.0,95664.0,0.31557974]
[1733209636872,0.001727,95665.0,95664.0,0.36354433]
[1733209637515,0.004727,95665.0,95664.0,0.36354433]
[1733209637732,0.001727,95665.0,95664.0,0.36354433]
[1733209637962,0.002727,95665.0,95664.0,0.36354433]
[1733209638184,0.002727,95665.0,95664.0,0.39712014]
[1733209638397,0.001727,95665.0,95664.0,0.59712014]
[1733209638601,0.001727,95665.0,95664.0,0.59812014]
[1733209639004,1e-06,95665.0,95664.0,0.94812014]
[1733209639212,0.00173,95697.0,95696.0,0.208995]
[1733209639443,0.00173,95697.0,95696.0,0.35726638]
[1733209640261,0.00173,95697.0,95696.0,0.73979246]
[1733209640471,0.00190589,95697.0,95696.0,0.73979246]
[1733209641518,0.00173,95709.0,95708.0,0.408968]
[1733209641714,0.00231748,95709.0,95708.0,0.51181321]
[1733209641923,0.00231748,95709.0,95708.0,0.54661263]
[1733209642347,0.00231748,95709.0,95708.0,0.43411263]
[1733209642553,0.00331748,95709.0,95708.0,0.58511263]
[1733209642767,4.8e-07,95709.0,95708.0,0.84057721]
[1733209642975,0.00100048,95709.0,95708.0,0.84957721]
[1733209643180,0.05270531,95714.0,95713.0,0.2875]
[1733209643390,0.05270531,95714.0,95713.0,0.65145756]
[1733209643600,0.05270531,95714.0,95713.0,0.7378765]
[1733209643823,0.05270531,95714.0,95713.0,0.70688203]
[1733209644043,0.05270531,95714.0,95713.0,0.73808935]
[1733209644253,0.05270531,95714.0,95713.0,0.71508935]
[1733209644668,0.05270531,95714.0,95713.0,0.68266488]
[1733209644879,0.05270531,95714.0,95713.0,0.42866488]
[1733209645087,0.05270531,95714.0,95713.0,0.62866488]
[1733209645297,0.05370531,95714.0,95713.0,0.63766488]
[1733209645711,0.05270531,95714.0,95713.0,0.65166488]
[1733209645959,0.05270531,95714.0,95713.0,0.65566488]
[1733209646791,0.05270531,95714.0,95713.0,0.63266488]
[1733209647276,0.05270531,95714.0,95713.0,0.63066488]
[1733209647701,0.05270531,95714.0,95713.0,0.62866488]
[1733209647907,0.05370531,95714.0,95713.0,0.65766488]
[1733209648120,0.05370531,95714.0,95713.0,0.66066488]
[1733209648330,0.05370531,95714.0,95713.0,0.65466488]
[1733209648331,0.05270531,95714.0,95713.0,0.65466488]
[1733209648586,0.05220203,95714.0,95713.0,0.65166488]
[1733209648798,0.05320203,95714.0,95713.0,0.65966488]
[1733209649017,0.05320203,95714.0,95713.0,0.65466488]
[1733209649241,0.05320203,95714.0,95713.0,0.66066488]
[1733209649444,0.05420203,95714.0,95713.0,0.66066488]
[1733209650089,0.05592863,95714.0,95713.0,0.66066488]
[1733209651377,0.05592863,95714.0,95713.0,0.43766488]
[1733209651603,0.05592863,95714.0,95713.0,0.35016488]
[1733209651811,0.05592863,95714.0,95713.0,0.43766488]
[1733209652658,0.0017274,95729.0,95728.0,0.296425]
[1733209652882,0.0017274,95729.0,95728.0,0.42823973]
[1733209653091,0.0017274,95729.0,95728.0,0.43122489]
[1733209653944,0.0037274,95729.0,95728.0,0.59722489]
[1733209654167,0.0037274,95729.0,95728.0,0.79722489]
[1733209654380,0.0017286,95750.0,95728.0,0.79722489]
[1733209654381,0.0017286,95750.0,95730.0,0.64642]
[1733209654604,0.0017286,95750.0,95748.0,0.0875]
[1733209654824,0.0017286,95750.0,95748.0,0.30292291]
[1733209655035,0.0017286,95750.0,95748.0,0.65995587]
[1733209655499,6e-07,95749.0,95748.0,0.85995587]
[1733209655731,2e-07,95750.0,95749.0,0.4605]
[1733209655968,0.001729,95762.0,95760.0,0.4375]
[1733209656242,0.00185025,95761.0,95760.0,0.85964622]
[1733209657297,0.00185025,95761.0,95760.0,0.86064622]
[1733209657770,0.00185025,95761.0,95760.0,0.85964622]
[1733209658185,0.00185025,95761.0,95760.0,0.86464622]
[1733209658390,0.00185025,95761.0,95760.0,0.89585354]
[1733209658596,0.00185025,95761.0,95760.0,0.84185354]
[1733209659431,0.00185025,95761.0,95760.0,0.84085354]
[1733209659642,0.00185025,95761.0,95760.0,0.64085354]
[1733209659859,0.00185025,95761.0,95760.0,0.64285354]
[1733209660064,0.00185025,95761.0,95760.0,0.63885354]
[1733209660270,0.00185025,95761.0,95760.0,0.63685354]
[1733209660479,0.00185025,95761.0,95760.0,0.63985354]
[1733209660681,0.00185025,95761.0,95760.0,0.64085354]
[1733209660929,0.00185025,95761.0,95760.0,0.63785354]
[1733209661185,0.00185025,95761.0,95760.0,0.63885354]
[1733209661410,0.00185025,95761.0,95760.0,0.63985354]
[1733209661820,0.00185025,95761.0,95760.0,0.55235354]
[1733209662031,0.00185025,95761.0,95760.0,0.40235354]
[1733209662436,0.00185025,95761.0,95760.0,0.37114622]
[1733209662635,0.00185025,95761.0,95760.0,0.37014622]
[1733209662842,0.08355025,95761.0,95760.0,0.16229122]
[1733209663056,0.08355025,95761.0,95760.0,0.10964071]
[1733209663533,0.08355025,95761.0,95760.0,0.10864071]
[1733209663738,0.08355025,95761.0,95760.0,0.10664071]
[1733209664382,0.08355025,95761.0,95760.0,0.10864071]
[1733209664592,0.08317181,95761.0,95760.0,0.10664071]
[1733209665006,0.08417181,95761.0,95760.0,0.11564071]
[1733209665212,0.08317181,95761.0,95760.0,0.31549571]
[1733209665631,0.08417181,95761.0,95760.0,0.32449571]
[1733209666779,0.08417181,95761.0,95760.0,0.11564071]
[1733209666979,0.08417181,95761.0,95760.0,0.32449571]
[1733209667409,0.08317181,95761.0,95760.0,0.31549571]
[1733209667860,0.08417181,95761.0,95760.0,0.32449571]
[1733209668095,0.08517181,95761.0,95760.0,0.12164071]
[1733209668304,0.08517181,95761.0,95760.0,0.32149571]
[1733209668305,0.08417181,95761.0,95760.0,0.32149571]
[1733209668512,0.08317181,95761.0,95760.0,0.10664071]
[1733209668953,0.09166189,95761.0,95760.0,0.10964071]
[1733209669180,0.20416189,95761.0,95760.0,0.0067955]
[1733209669423,0.20416189,95761.0,95760.0,0.0127955]
[1733209669424,0.24327181,95761.0,95760.0,0.0127955]
[1733209669717,0.24327181,95761.0,95760.0,0.009]
[1733209670215,0.1244,95746.0,95724.0,0.208933]
[1733209670442,0.1244,95746.0,95726.0,0.208929]
[1733209670685,0.1244,95746.0,95727.0,0.10469383]
[1733209670909,0.1244,95746.0,95727.0,0.10852516]
[1733209671676,0.1244,95746.0,95728.0,0.00227498]
[1733209671897,0.1244,95746.0,95729.0,0.10469383]
[1733209672124,0.1125,95744.0,95730.0,0.00227494]
[1733209672327,0.1125,95744.0,95731.0,0.1046939]
[1733209672527,0.1125,95744.0,95732.0,0.00227489]